bitfinex/quotes_ETHUSD_20250131
["timestamp","ask_amount","ask_price","bid_price","bid_amount"]
[1738363901760,6.62601243,3296.6,3295.9,0.98303041]
[1738363901761,5.82650243,3296.3,3295.9,0.98303041]
[1738363902546,3.03389,3296.1,3295.9,0.98303041]
[1738363902872,3.03425,3295.7,3295.6,0.59594285]
[1738363903035,3.03425,3295.7,3294.7,3.03516]
[1738363903036,3.03453,3295.5,3294.8,3.03502]
[1738363903235,0.7831,3295.4,3294.9,0.60413972]
[1738363903620,3.57588243,3295.4,3294.9,0.60413972]
[1738363904390,3.57588243,3295.4,3294.8,3.338522]
[1738363905035,2.79278243,3295.4,3294.8,3.03502]
[1738363906456,2.79278243,3295.4,3294.7,0.59448279]
[1738363906661,0.7831,3295.3,3294.9,3.03498]
[1738363907168,2.79278243,3295.1,3294.6,3.65118549]
[1738363908575,6.03536,3294.5,3294.4,2.3e-06]
[1738363908773,3.03615,3293.7,3293.2,0.66666667]
[1738363909078,0.7951,3294.4,3293.6,3.03618]
[1738363909372,0.7951,3294.4,3293.9,3.0359]
[1738363909742,0.7951,3294.4,3293.9,3.03583]
[1738363910087,2.79278243,3294.5,3294.2,3.03559]
[1738363910240,3.03573,3294.1,3294.0,0.03872174]
[1738363910440,2.79278243,3294.1,3293.4,3.0363]
[1738363910749,2.79278243,3294.1,3293.3,3.03646]
[1738363910964,3.0,3294.9,3294.1,3.03572]
[1738363910965,3.79788243,3294.7,3294.1,3.03572]
[1738363911203,6.83313243,3294.7,3293.9,3.0359]
[1738363911472,0.55,3294.2,3293.4,0.45314667]
[1738363911647,2.79278243,3294.4,3293.5,0.43180967]
[1738363911846,2.79278243,3294.4,3293.6,3.03618]
[1738363912070,0.55,3294.3,3293.3,0.8285]
[1738363912376,0.55,3294.3,3293.5,3.03628]
[1738363912975,3.00278243,3294.4,3293.8,3.03592]
[1738363913291,3.00278243,3294.4,3293.9,3.03587]
[1738363913489,2.79278243,3294.4,3293.9,3.03587]
[1738363913797,2.79278243,3294.4,3294.0,3.03581]
[1738363914176,2.79278243,3294.4,3293.9,3.03582]
[1738363914372,2.79278243,3294.4,3293.5,3.03628]
[1738363914555,2.79278243,3294.4,3294.3,3.03554]
[1738363914894,1.0051,3294.7,3294.3,3.03554]
[1738363915095,2.79278243,3294.7,3294.4,3.03541]
[1738363917073,2.79278243,3294.7,3294.1,3.03571]
[1738363917270,2.79278243,3294.7,3294.2,3.0356]
[1738363919202,2.79278243,3294.7,3294.3,3.03553]
[1738363919401,2.79278243,3294.7,3294.2,3.03561]
[1738363919763,2.79278243,3294.7,3294.3,3.03552]
[1738363921468,2.79278243,3294.7,3294.0,0.7731]
[1738363921664,2.79278243,3294.4,3293.3,0.7731]
[1738363921865,2.79278243,3293.8,3293.2,1.2875948]
[1738363922105,3.00578243,3293.8,3293.2,0.66666667]
[1738363922281,0.55,3293.4,3293.2,0.66666667]
[1738363922491,3.58638,3293.4,3293.2,0.66666667]
[1738363923511,0.7779,3293.3,3293.2,0.66666667]
[1738363923813,3.81436,3293.3,3293.2,0.66666667]
[1738363924339,3.037,3292.8,3292.3,0.60707165]
[1738363924640,3.037,3292.8,3292.1,0.005]
[1738363924797,2.79278243,3292.9,3292.1,0.005]
[1738363924986,3.03701,3292.8,3292.2,0.04090221]
[1738363925189,0.55,3292.7,3292.2,0.04090221]
[1738363925388,3.58708,3292.7,3292.1,0.005]
[1738363925622,3.58708,3292.7,3292.3,0.04079778]
[1738363925820,3.58708,3292.7,3292.2,0.03749369]
[1738363926133,3.58708,3292.7,3292.4,0.04069336]
[1738363926431,3.03693,3292.8,3292.3,0.04079778]
[1738363926735,0.55,3292.7,3292.5,0.03748331]
[1738363926897,0.55,3292.7,3292.4,0.03757902]
[1738363927308,3.03709,3292.7,3292.1,0.005]
[1738363927492,3.58711,3292.6,3292.5,0.03459998]
[1738363928035,3.81513,3292.5,3292.1,0.005]
[1738363928236,0.7779,3292.5,3292.1,0.005]
[1738363928400,3.8151,3292.5,3292.2,0.034942]
[1738363928604,3.8151,3292.5,3292.1,0.005]
[1738363928805,2.79278243,3292.6,3292.3,0.03485364]
[1738363928990,2.79278243,3292.6,3292.1,0.005]
[1738363929188,2.79278243,3292.6,3292.4,0.03476528]
[1738363929410,2.79278243,3292.6,3292.1,0.005]
[1738363929610,2.79278243,3292.6,3292.5,0.03467693]
[1738363929807,2.79278243,3292.6,3292.1,0.005]
[1738363930041,0.15778148,3293.8,3292.1,0.005]
[1738363930042,2.79278243,3293.2,3292.7,3.03698]
[1738363930222,2.79278243,3293.5,3292.8,3.03684]
[1738363930423,2.79278243,3293.5,3292.8,3.721829]
[1738363930623,2.79278243,3293.5,3292.9,0.03718388]
[1738363930822,2.79278243,3293.5,3292.8,3.03684]
[1738363931053,2.79278243,3293.5,3293.0,3.07147083]
[1738363931276,2.79278243,3293.5,3293.0,3.03673]
[1738363931441,2.79278243,3293.5,3293.1,0.03754022]
[1738363932104,3.03654,3293.3,3293.1,0.03754022]
[1738363932453,5.82934243,3293.2,3292.4,3.66035319]
[1738363932633,2.79278243,3293.2,3292.4,3.66035319]
[1738363932830,3.03665,3293.1,3292.4,3.66035319]
[1738363933844,3.03676,3293.0,3292.4,3.03724]
[1738363934826,3.03676,3293.0,3292.4,3.722311]
[1738363935165,2.79278243,3293.2,3292.5,3.0372]
[1738363935466,2.79278243,3293.2,3292.6,3.03702]
[1738363935757,2.79278243,3293.2,3292.7,3.03695]
[1738363936332,5.82934243,3293.2,3292.5,3.0372]
[1738363936530,5.82934243,3293.2,3292.3,3.81338]
[1738363936531,5.82934243,3293.2,3292.6,3.03711]
[1738363937851,3.03694,3292.8,3292.1,0.005]
[1738363938163,5.82993243,3292.6,3292.1,0.005]
[1738363938368,3.03731,3292.4,3292.1,0.005]
[1738363938843,5.82993243,3292.6,3292.1,0.005]
[1738363938844,3.00678243,3292.6,3292.1,0.005]
[1738363939624,6.04389243,3292.6,3292.1,0.005]
[1738363940059,6.04389243,3292.6,3292.2,0.04246653]
[1738363940465,3.03724,3292.5,3292.1,0.005]
[1738363940632,6.04389243,3292.6,3292.3,0.04235166]
[1738363940813,3.03722,3292.5,3292.1,0.005]
[1738363941016,3.03722,3292.5,3292.4,0.0422368]
[1738363941403,6.04389243,3292.6,3292.1,0.005]
[1738363941549,3.03732,3292.4,3292.1,0.005]
[1738363941755,6.04389243,3292.6,3292.1,0.005]
[1738363941756,3.03724,3292.5,3292.1,0.005]
[1738363942422,2.79278243,3292.3,3292.1,0.005]
[1738363944220,5.83017243,3292.3,3292.1,0.005]
[1738363945404,2.79278243,3292.3,3292.1,0.005]
[1738363945697,5.83019243,3292.3,3292.1,0.005]
[1738363946503,2.79278243,3292.3,3292.1,0.005]
[1738363947970,5.83018243,3292.3,3292.1,0.005]
[1738363948155,3.03748,3292.2,3292.1,0.005]
[1738363948595,2.79278243,3292.3,3292.1,0.005]
[1738363948937,0.7946,3292.2,3292.1,0.005]
[1738363950207,3.03748,3292.2,3292.1,0.005]
[1738363950501,3.83208,3292.2,3292.1,0.005]
[1738363951012,4.38958,3292.2,3292.1,0.005]
[1738363951226,3.03775,3292.0,3291.2,3.03837]
[1738363951561,2.0,3292.5,3291.3,0.04206555]
[1738363951562,5.83090243,3291.6,3291.3,0.04206555]
[1738363951699,2.79278243,3291.4,3291.3,0.04206555]
[1738363951901,2.79278243,3291.4,3291.1,0.1658423]
[1738363952306,5.83103243,3291.4,3291.2,0.04491048]
[1738363952474,0.213,3291.3,3291.2,0.04491048]
[1738363952674,4.04592,3291.3,3291.1,0.1658423]
[1738363953625,3.0384,3291.2,3291.1,0.1658423]
[1738363954172,4.4088,3291.2,3291.1,0.1658423]
[1738363954612,4.4088,3291.2,3289.6,3.0398]
[1738363954613,4.40972,3290.2,3289.1,3.04029]
[1738363954770,2.79278243,3289.6,3289.4,0.61376452]
[1738363955086,2.79278243,3289.6,3289.5,0.05057315]
[1738363955267,0.215,3289.8,3289.5,0.88177315]
[1738363955467,3.82818243,3290.2,3289.9,3.03958]
[1738363955709,2.79278243,3290.5,3290.0,0.8312]
[1738363955885,2.79278243,3290.8,3290.2,3.03926]
[1738363956113,2.79278243,3290.8,3290.3,0.8312]
[1738363956309,2.79278243,3290.8,3290.5,3.03904]
[1738363956679,0.8204,3290.7,3289.2,0.8312]
[1738363956850,2.79278243,3290.1,3289.6,3.03981]
[1738363957018,2.79278243,3290.1,3289.7,0.05746916]
[1738363957219,2.79278243,3289.8,3289.2,3.87143]
[1738363957474,2.79278243,3289.8,3289.3,3.09100083]
[1738363957774,2.79278243,3289.8,3289.5,3.03996]
[1738363957985,3.03995,3289.6,3289.3,0.05086083]
[1738363958141,3.03995,3289.6,3289.0,0.66666667]
[1738363958142,2.79278243,3289.4,3289.0,0.66666667]
[1738363958783,2.79278243,3289.1,3289.0,0.66666667]
[1738363960086,6.61462243,3289.1,3289.0,0.66666667]
[1738363960262,7.16462243,3289.1,3289.0,0.66666667]
[1738363961775,7.17212243,3289.1,3289.0,0.66666667]
[1738363961940,3.34278243,3289.1,3289.0,0.66666667]
[1738363962147,2.79278243,3289.1,3289.0,0.66666667]
[1738363963084,2.79278243,3289.4,3289.0,0.66666667]
[1738363963234,2.79278243,3289.1,3289.0,0.66666667]
[1738363963831,2.79278243,3289.1,3289.0,3.70709667]
[1738363964081,2.79278243,3289.1,3289.0,3.74909384]
[1738363964524,3.26186,3289.7,3289.0,3.74909384]
[1738363964525,2.79278243,3289.4,3289.0,0.70866384]
[1738363964827,5.83203243,3290.3,3289.0,0.70866384]
[1738363964828,2.79278243,3290.0,3289.1,0.7955]
[1738363964986,2.79278243,3290.0,3289.9,3.0396]
[1738363965192,2.79278243,3290.0,3289.9,3.08056158]
[1738363966016,2.79278243,3290.0,3289.9,0.04096158]
[1738363966223,3.59758243,3290.0,3289.5,3.03995]
[1738363966430,5.83258243,3289.7,3289.6,0.04216628]
[1738363966623,2.79278243,3289.7,3289.1,3.04032]
[1738363966771,2.79278243,3289.7,3289.2,0.04262655]
[1738363967233,2.79278243,3289.7,3289.4,3.04004]
[1738363967431,2.79278243,3289.7,3289.5,0.04228133]
[1738363967578,2.79278243,3289.7,3289.2,3.0402]
[1738363967939,2.79278243,3289.7,3289.3,0.04251147]
[1738363968090,2.79278243,3289.7,3289.6,3.84788]
[1738363968295,2.79278243,3290.1,3289.6,3.84788]
[1738363968495,2.79278243,3290.1,3289.6,3.88630384]
[1738363968690,2.79278243,3290.1,3289.9,3.03957]
[1738363969129,2.79278243,3290.1,3290.0,0.03795683]
[1738363969892,2.79278243,3290.1,3289.6,0.808]
[1738363970091,2.79278243,3290.1,3289.2,3.04018]
[1738363970092,2.79278243,3290.4,3290.3,3.03923]
[1738363970505,2.79278243,3290.4,3290.3,3.08054823]
[1738363970742,2.79278243,3290.7,3290.5,3.03897]
[1738363970900,2.79278243,3290.7,3290.6,3.03895]
[1738363971105,2.79278243,3290.7,3290.6,3.07992325]
[1738363971705,2.79278243,3290.7,3290.6,0.04097325]
[1738363972107,2.79278243,3290.7,3290.2,3.03932]
[1738363972410,0.221,3290.8,3290.1,3.03942]
[1738363972411,2.79278243,3290.4,3290.1,3.03942]
[1738363972805,2.79278243,3290.4,3290.3,3.03923]
[1738363973304,3.59828243,3290.4,3290.3,3.03923]
[1738363973711,4.21569645,3290.4,3290.1,3.03942]
[1738363973913,4.21569645,3290.4,3289.8,3.03963]
[1738363974122,4.21569645,3290.4,3290.0,3.03943]
[1738363974917,4.21569645,3290.4,3289.8,3.03963]
[1738363975132,4.21569645,3290.4,3289.8,3.03962]
[1738363976504,7.25488645,3290.4,3289.8,3.03962]
[1738363977658,4.21569645,3290.4,3289.9,3.03959]
[1738363978325,4.21569645,3290.4,3290.3,3.03923]
[1738363978326,3.41019645,3290.4,3290.3,3.03923]
[1738363978635,3.41019645,3290.4,3290.1,3.03939]
[1738363979037,3.41019645,3290.4,3290.2,3.0393]
[1738363979541,3.41019645,3290.4,3290.1,3.03939]
[1738363979755,3.41019645,3290.4,3290.3,3.03923]
[1738363981841,3.62919645,3290.8,3289.8,0.808]
[1738363982059,3.62919645,3290.8,3290.5,3.03899]
[1738363982407,3.62919645,3290.8,3290.6,3.07938787]
[1738363982624,3.41019645,3290.8,3290.6,3.07938787]
[1738363982808,3.41019645,3290.8,3290.7,3.03886]
[1738363983044,3.41019645,3290.8,3290.7,3.07918289]
[1738363985833,3.41019645,3290.8,3290.7,0.04032289]
[1738363986139,3.41019645,3290.8,3290.7,3.03886]
[1738363986471,3.41019645,3290.8,3290.7,3.08339761]
[1738363993157,3.41019645,3290.8,3290.7,0.04453761]
[1738363993692,4.18539645,3290.8,3290.7,0.0444623]
[1738363993856,3.03888,3290.7,3290.0,3.03946]
[1738363994255,0.55,3290.6,3290.0,3.03946]
[1738363994585,0.55,3290.6,3290.1,3.03941]
[1738363994789,0.7752,3290.5,3290.1,3.03941]
[1738363997005,0.7752,3290.5,3290.2,3.03932]
[1738363997363,0.7752,3290.5,3290.1,3.03941]
[1738363997364,0.7752,3290.5,3290.3,3.03921]
[1738363998579,0.7752,3290.5,3290.1,6.07876]
[1738363998788,0.7752,3290.5,3290.1,3.03935]
[1738363999266,0.7752,3290.5,3290.2,3.03932]
[1738363999467,0.7752,3290.5,3289.5,3.85131]
[1738363999468,0.7752,3290.5,3289.9,6.07912]
[1738363999709,0.7752,3290.5,3290.1,3.03941]
[1738364000212,0.7752,3290.5,3290.2,3.08466296]
[1738364000782,0.7752,3290.5,3290.2,0.04534296]
[1738364000982,2.81403479,3290.3,3290.2,0.04534296]
[1738364002713,0.55,3290.0,3289.4,6.08002]
[1738364002866,2.81403479,3289.6,3289.4,3.03999]
[1738364003068,2.81403479,3289.6,3289.5,3.08165172]
[1738364003710,2.81403479,3289.9,3289.7,3.03977]
[1738364004216,2.81403479,3289.9,3289.8,0.04133656]
[1738364004579,2.81403479,3289.9,3289.7,3.03977]
[1738364004785,2.81403479,3289.9,3289.8,0.04133656]
[1738364004987,2.81403479,3289.9,3289.7,3.03977]
[1738364005297,2.81403479,3289.9,3289.8,0.04133656]
[1738364005495,2.81403479,3289.9,3289.7,3.03977]
[1738364005695,2.81403479,3289.9,3289.8,0.04133656]
[1738364005911,2.81403479,3289.9,3289.6,3.03985]
[1738364006084,2.81403479,3289.9,3289.8,0.04133656]
[1738364006270,2.81403479,3289.9,3289.6,3.03985]
[1738364006465,2.81403479,3289.9,3289.7,0.04145161]
[1738364007277,2.81403479,3289.9,3289.7,3.08122161]
[1738364009014,2.81403479,3289.9,3289.8,3.03969]
[1738364009335,2.81403479,3289.9,3289.8,3.08102656]
[1738364017990,3.02703479,3290.2,3289.8,0.04133656]
[1738364018218,3.02703479,3290.2,3289.6,3.854]
[1738364018219,3.02703479,3290.2,3290.1,3.03935]
[1738364018613,3.02703479,3290.2,3290.1,3.08055202]
[1738364019129,4.33404393,3290.2,3290.1,0.04120202]
[1738364019423,3.78404393,3290.2,3290.0,3.0395]
[1738364019728,3.78404393,3290.2,3290.1,0.04120202]
[1738364024525,3.78404393,3290.2,3288.1,3.2]
[1738364024526,3.5907,3288.8,3288.0,3.04629]
[1738364024869,1.3266,3288.3,3288.0,0.005]
[1738364025526,4.3677,3288.3,3288.0,0.005]
[1738364025722,0.55,3288.1,3288.0,0.005]
[1738364026159,0.565,3288.1,3288.0,0.005]
[1738364031373,3.60627,3288.1,3288.0,0.005]
[1738364031734,0.565,3288.1,3288.0,0.005]
[1738364037688,0.213,3288.1,3288.0,0.005]
[1738364038386,2.81403479,3288.2,3288.0,3.04636]
[1738364038587,0.213,3288.1,3288.0,3.04636]
[1738364038757,0.213,3288.1,3288.0,0.005]
[1738364038958,0.763,3288.1,3288.0,0.005]
[1738364039186,1.527,3288.1,3288.0,0.005]
[1738364039886,1.5345,3288.1,3288.0,0.005]
[1738364040063,4.57577,3288.1,3288.0,0.005]
[1738364040563,1.527,3288.1,3288.0,0.005]
[1738364041246,1.5345,3288.1,3288.0,0.005]
[1738364041445,4.57577,3288.1,3288.0,0.005]
[1738364041647,1.5345,3288.1,3288.0,0.005]
[1738364041857,1.527,3288.1,3288.0,0.005]
[1738364042084,0.213,3288.1,3288.0,0.005]
[1738364042740,2.81403479,3288.2,3288.0,0.005]
[1738364042945,0.213,3288.1,3288.0,0.005]
[1738364044567,0.212,3288.1,3288.0,0.005]
[1738364044757,0.212,3288.1,3288.0,0.833]
[1738364045906,0.212,3288.1,3288.0,0.005]
[1738364047064,2.81403479,3288.2,3288.1,0.828]
[1738364047258,2.81403479,3288.2,3288.1,3.86927]
[1738364049897,2.81403479,3288.2,3288.1,3.85947913]
[1738364051112,0.212,3288.7,3288.3,3.041]
[1738364051318,2.81403479,3289.1,3288.4,3.04099]
[1738364051478,2.81403479,3289.1,3289.0,3.04043]
[1738364051677,3.02703479,3289.4,3289.1,3.04027]
[1738364051925,3.02703479,3289.4,3289.2,3.04024]
[1738364052214,3.02703479,3289.4,3289.0,3.04037]
[1738364052515,0.55,3289.3,3288.2,3.04109]
[1738364052700,2.81403479,3289.4,3288.7,0.60965287]
[1738364052873,0.0075,3290.0,3289.4,3.04]
[1738364052874,2.81403479,3289.7,3289.4,3.04]
[1738364053209,0.213,3289.9,3289.7,3.03974]
[1738364053713,0.213,3289.9,3289.5,0.7781]
[1738364053872,0.213,3289.9,3289.6,3.03984]
[1738364054400,0.213,3289.9,3289.7,3.03978]
[1738364054617,0.213,3290.2,3290.0,3.03949]
[1738364055173,2.81403479,3290.3,3290.0,3.03949]
[1738364056217,2.81403479,3290.3,3290.0,3.03945]
[1738364056519,2.81403479,3290.6,3290.2,0.8317]
[1738364056870,2.81403479,3290.6,3290.4,3.03913]
[1738364057776,2.81403479,3290.6,3290.5,3.03905]
[1738364057985,3.02703479,3290.9,3290.6,3.03892]
[1738364058214,2.81403479,3290.9,3290.7,3.0388]
[1738364058835,2.81403479,3290.9,3290.7,3.03881]
[1738364059041,2.81403479,3290.9,3290.8,3.03877]
[1738364059595,2.81403479,3291.5,3290.8,0.7604]
[1738364059897,2.81403479,3291.5,3291.2,3.0384]
[1738364060099,2.81403479,3291.5,3291.3,3.03829]
[1738364060412,3.02703479,3291.8,3291.4,3.03822]
[1738364061084,3.02703479,3291.8,3290.8,0.7604]
[1738364061285,0.55,3291.7,3291.0,3.03851]
[1738364061544,2.81403479,3291.5,3291.0,3.03851]
[1738364062123,1.3709,3291.2,3290.6,3.03893]
[1738364062428,0.0075,3291.1,3290.4,3.03912]
[1738364062731,0.55,3290.9,3290.4,3.03912]
[1738364062928,0.5575,3291.1,3290.4,3.03912]
[1738364063484,0.5575,3291.1,3290.4,3.7839969]
[1738364063685,0.7894,3291.0,3290.4,3.03912]
[1738364063930,2.81403479,3290.9,3290.4,3.03912]
[1738364064228,2.81403479,3290.6,3290.1,3.03933]
[1738364064790,0.0075,3290.2,3289.5,3.03993]
[1738364065112,0.7894,3289.8,3289.5,3.03993]
[1738364066118,0.7894,3289.8,3289.3,3.04014]
[1738364066319,0.763,3289.9,3289.7,3.03977]
[1738364066830,0.213,3289.9,3289.8,3.03969]
[1738364067034,2.81403479,3290.6,3289.8,3.67185574]
[1738364067208,0.7894,3291.0,3289.8,3.67185574]
[1738364067209,0.214,3290.8,3289.8,3.67185574]
[1738364067793,0.55,3290.7,3290.4,3.03906]
[1738364068492,2.81403479,3290.6,3290.2,3.03932]
[1738364071631,2.81403479,3290.6,3290.0,3.03951]
[1738364071632,0.8142,3290.5,3290.0,3.03951]
[1738364073144,0.8142,3290.5,3290.0,2.53951]
[1738364073344,3.85327,3290.5,3289.8,3.03968]
[1738364074053,3.03907,3290.5,3289.9,3.81789]
[1738364074553,0.8142,3290.4,3289.9,3.03959]
[1738364076851,0.55,3290.5,3289.9,3.03959]
[1738364077106,0.213,3290.4,3289.9,3.03959]
[1738364077402,0.213,3290.4,3289.9,3.03954]
[1738364077706,0.213,3290.4,3290.0,3.0395]
[1738364077865,0.213,3290.4,3289.6,0.7783]
[1738364077866,0.213,3290.4,3289.8,3.03963]
[1738364078187,1.0272,3290.4,3289.8,3.03963]
[1738364078391,1.0272,3290.4,3289.9,3.03957]
[1738364078764,1.0272,3290.4,3289.7,3.03977]
[1738364078966,4.06634,3290.4,3289.7,3.03977]
[1738364079215,3.03926,3290.3,3289.7,3.03977]
[1738364080481,3.85355,3290.2,3289.5,3.03995]
[1738364081179,3.85355,3290.2,3289.4,1.37982068]
[1738364081180,3.03885,3290.8,3290.2,0.7783]
[1738364081368,2.81403479,3291.0,3290.2,0.7783]
[1738364081566,2.81403479,3291.0,3290.5,3.03901]
[1738364081768,2.81403479,3291.0,3290.4,3.03905]
[1738364082062,2.81403479,3291.0,3290.6,3.03891]
[1738364083581,0.55,3291.1,3290.6,3.03891]
[1738364083788,3.58849,3291.1,3290.5,3.03903]
[1738364084227,2.81403479,3291.2,3290.6,3.03892]
[1738364086329,2.81403479,3291.2,3290.7,3.03886]
[1738364086883,2.81403479,3291.2,3290.8,3.03875]
[1738364087435,3.86405,3291.4,3290.8,3.03875]
[1738364088755,3.86405,3291.4,3290.8,3.81975]
[1738364088933,0.8258,3291.4,3290.8,0.781]
[1738364089135,3.02503479,3291.5,3290.9,3.03862]
[1738364089344,3.02503479,3291.5,3290.9,3.420582]
[1738364090208,6.06323479,3291.5,3290.8,0.781]
[1738364090407,6.06323479,3291.5,3290.8,3.81974]
[1738364092840,3.02503479,3291.5,3290.9,3.0386]
[1738364093150,3.02503479,3291.5,3290.8,0.781]
[1738364093361,3.03822,3291.4,3290.7,3.03884]
[1738364093652,0.8278,3291.2,3290.5,0.781]
[1738364093865,3.0385,3291.1,3290.5,3.81998]
[1738364094229,3.03859,3291.0,3290.5,3.81998]
[1738364094638,3.03859,3291.0,3290.5,0.781]
[1738364094855,3.03859,3291.0,3290.4,3.03914]
[1738364095039,3.03886,3290.8,3290.1,4.43026662]
[1738364095214,0.55,3290.9,3290.1,1.39085662]
[1738364095416,3.03895,3290.7,3290.1,0.781]
[1738364095640,4.41678,3290.6,3290.1,0.781]
[1738364096030,4.41678,3290.6,3289.9,3.03954]
[1738364096230,4.41678,3290.6,3289.9,3.72556]
[1738364096554,3.03907,3290.5,3289.9,3.72556]
[1738364097343,3.03921,3290.4,3289.8,0.781]
[1738364097950,3.03921,3290.4,3289.7,3.03975]
[1738364100180,6.40327479,3290.3,3289.6,3.64818563]
[1738364100346,0.55,3289.9,3289.4,3.04004]
[1738364100545,0.55,3289.9,3289.2,0.781]
[1738364100750,0.55,3289.9,3289.3,3.04015]
[1738364101248,3.58962,3289.9,3289.3,3.04015]
[1738364101449,0.55,3289.9,3289.2,0.781]
[1738364101663,3.0397,3289.8,3289.2,0.59545361]
[1738364102480,3.0397,3289.8,3289.2,3.63569361]
[1738364105379,0.55,3289.7,3289.2,3.63569361]
[1738364106082,0.565,3289.5,3289.2,0.59545361]
[1738364106280,0.7761,3289.2,3288.3,0.98530242]
[1738364106576,0.7761,3289.2,3288.0,0.005]
[1738364106577,0.7761,3288.7,3288.0,3.04635]
[1738364106766,0.7761,3288.7,3288.1,3.345895]
[1738364107159,3.81682,3288.7,3288.1,3.345895]
[1738364107949,3.59088,3288.6,3288.0,0.005]
[1738364108606,0.55,3288.4,3288.0,0.005]
[1738364108905,3.04112,3288.3,3288.0,0.005]
[1738364109707,0.55,3288.4,3288.0,0.005]
[1738364110597,3.04118,3288.2,3288.0,0.005]
[1738364111112,3.04112,3288.3,3288.0,0.005]
[1738364111796,2.81733575,3288.1,3288.0,0.005]
[1738364114395,2.81733575,3288.4,3288.0,0.005]
[1738364116067,0.8236,3288.3,3288.0,0.005]
[1738364116499,2.81733575,3288.4,3288.0,0.005]
[1738364117088,0.8236,3288.3,3287.8,3.04146]
[1738364117289,0.5575,3286.5,3285.3,0.7691]
[1738364117572,3.04349,3285.7,3285.3,0.7691]
[1738364117819,3.04359,3285.6,3285.3,0.92653353]
[1738364118023,3.04359,3285.6,3284.9,1.3779431]
[1738364118331,3.0434,3285.8,3284.9,1.3779431]
[1738364118473,0.55,3285.7,3284.9,1.3779431]
[1738364118668,3.04369,3285.5,3284.9,1.3779431]
[1738364119303,3.04432,3284.9,3284.5,0.1658423]
[1738364119814,3.04404,3285.1,3284.6,0.06654088]
[1738364120225,0.55,3285.0,3284.6,0.06654088]
[1738364120519,6.68485575,3285.3,3284.6,0.06654088]
[1738364120675,5.86125575,3285.3,3284.6,0.04089057]
[1738364120875,2.81733575,3285.3,3284.7,3.04441]
[1738364121276,2.81733575,3285.3,3284.8,0.04077518]
[1738364122218,2.81733575,3285.6,3284.9,3.81328]
[1738364122385,2.81733575,3285.6,3285.1,3.04395]
[1738364122586,6.68425575,3285.9,3285.2,3.04395]
[1738364122823,2.81733575,3285.9,3285.3,3.08552591]
[1738364122971,0.8236,3286.2,3285.6,3.0435]
[1738364122972,2.81733575,3286.2,3285.6,3.0435]
[1738364123303,2.81733575,3286.5,3286.0,3.04312]
[1738364123474,2.81733575,3286.5,3286.0,3.04315]
[1738364123674,2.81733575,3286.5,3286.1,0.04078113]
[1738364124222,2.81733575,3286.5,3286.2,0.786]
[1738364124672,2.81733575,3286.5,3286.3,0.04490933]
[1738364125673,3.59284,3286.4,3285.9,0.786]
[1738364125910,3.04321,3286.0,3285.5,0.786]
[1738364126112,3.59312,3286.1,3286.0,0.04529365]
[1738364126308,0.55,3285.8,3285.1,0.786]
[1738364126524,0.55,3285.8,3285.1,3.83001]
[1738364126731,2.81733575,3285.9,3285.2,0.04631886]
[1738364127166,2.81733575,3285.6,3285.2,0.04631886]
[1738364127285,0.55,3285.4,3284.8,0.61150113]
[1738364127682,0.55,3285.4,3284.8,0.67800554]
[1738364127980,0.55,3285.5,3284.8,0.67800554]
[1738364128225,0.55,3285.2,3284.8,0.67800554]
[1738364128815,3.04367,3285.5,3284.8,0.66137943]
[1738364129011,3.41997385,3285.6,3284.8,1.20973817]
[1738364129218,3.41997385,3285.6,3284.9,3.04415]
[1738364129381,0.55,3285.5,3284.9,3.04415]
[1738364129587,3.04338,3285.9,3284.8,0.66137943]
[1738364129802,0.55,3285.8,3284.8,0.61150113]
[1738364130051,0.55,3285.8,3285.1,3.04399]
[1738364130238,0.5575,3285.9,3285.1,3.04401]
[1738364130434,0.55,3285.7,3284.8,0.61150113]
[1738364130602,0.5575,3285.9,3285.2,3.04393]
[1738364130803,3.6008,3285.9,3285.2,3.04393]
[1738364133936,0.55,3285.9,3285.3,3.04382]
[1738364134114,3.41997385,3286.0,3285.0,0.8128]
[1738364134445,3.41997385,3286.0,3285.5,3.0436]
[1738364134809,3.41997385,3286.0,3285.7,3.04341]
[1738364136742,3.41997385,3286.0,3285.5,3.0436]
[1738364136943,3.41997385,3286.0,3285.8,3.04339]
[1738364137263,3.41997385,3286.4,3286.0,3.04314]
[1738364137816,3.41997385,3286.4,3286.1,3.04312]
[1738364139863,3.41997385,3286.4,3285.7,0.8128]
[1738364140168,3.41997385,3286.4,3286.2,3.04299]
[1738364140722,3.41997385,3286.4,3286.0,3.0432]
[1738364140946,3.41997385,3286.4,3286.2,3.04296]
[1738364141478,3.41997385,3286.8,3286.5,3.04273]
[1738364141681,3.41997385,3286.8,3286.3,3.86203]
[1738364141883,3.41997385,3286.8,3286.6,3.04265]
[1738364142852,3.41997385,3286.8,3286.3,0.8191]
[1738364143058,3.41997385,3286.8,3286.7,3.04256]
[1738364147384,3.41997385,3287.2,3286.9,3.04236]
[1738364149546,3.41997385,3287.2,3287.0,3.04225]
[1738364149791,2.81942323,3287.1,3287.0,3.04225]
[1738364156508,2.81942323,3287.1,3286.8,3.04246]
[1738364158279,0.7518,3287.0,3286.8,3.04246]
[1738364160107,2.81942323,3287.1,3286.8,3.04246]
[1738364160602,2.81942323,3287.1,3287.0,3.04228]
[1738364161005,2.81942323,3287.1,3287.0,3.03029]
[1738364162671,2.81942323,3287.1,3286.8,3.0424]
[1738364162870,0.7877,3287.0,3286.8,3.0424]
[1738364163377,2.81942323,3287.1,3286.8,3.0424]
[1738364166268,2.80962224,3287.1,3286.8,3.0424]
[1738364167297,2.80962224,3287.1,3286.9,3.04237]
[1738364168817,2.80962224,3287.1,3287.0,3.04228]
[1738364176634,2.81942323,3287.5,3287.0,3.04228]
[1738364176789,2.81942323,3287.5,3287.2,3.0421]
[1738364176989,2.81942323,3287.5,3287.0,3.04228]